bitfinex-derivatives/quotes_ETHF0:USTF0_20250606
["timestamp","ask_amount","ask_price","bid_price","bid_amount"]
[1749240642308,1.87335759,2490.5,2490.4,3.2078]
[1749240643599,1.87335759,2490.5,2490.4,4.01031]
[1749240643908,1.87335759,2490.5,2490.4,3.2078]
[1749240644309,1.87335759,2490.5,2490.4,4.01032]
[1749240644502,1.07085759,2490.5,2490.4,4.01032]
[1749240644808,1.337,2490.8,2490.7,0.80242]
[1749240645003,1.73921975,2490.8,2490.7,4.01022]
[1749240645398,1.06991975,2490.8,2490.7,4.01022]
[1749240645706,0.80238,2490.9,2490.8,0.80236]
[1749240646106,1.07009603,2490.9,2490.8,0.80239]
[1749240646301,0.80233,2491.0,2490.9,0.80232]
[1749240646500,1.87248017,2491.0,2490.9,0.80232]
[1749240646703,1.07015017,2491.0,2490.9,0.80232]
[1749240647000,1.48467,2491.2,2491.1,0.80229]
[1749240647201,2.55440926,2491.2,2491.1,0.80229]
[1749240647808,1.75213926,2491.2,2491.1,0.80229]
[1749240648208,2.55439926,2491.2,2491.1,0.80229]
[1749240648701,1.75213926,2491.2,2491.1,0.80229]
[1749240648908,2.55439926,2491.2,2491.1,0.80229]
[1749240649108,0.6824,2491.2,2491.1,0.80229]
[1749240649508,0.6477,2491.4,2491.2,0.80226]
[1749240649702,1.87200946,2491.3,2491.2,0.80226]
[1749240650106,1.44991,2491.4,2491.3,0.80223]
[1749240650311,1.44991,2491.4,2491.3,3.2078]
[1749240650312,2.51975426,2491.4,2491.3,3.2078]
[1749240650500,1.06984426,2491.4,2491.3,4.01003]
[1749240650901,0.80218,2491.5,2491.3,4.01003]
[1749240651612,0.80218,2491.5,2491.4,0.80221]
[1749240651811,1.87239198,2491.5,2491.4,0.80221]
[1749240652012,0.80221,2491.4,2491.3,4.01001]
[1749240652409,0.6455,2491.6,2491.3,3.2078]
[1749240652614,0.80221,2491.4,2491.3,4.01001]
[1749240653814,0.80219,2491.5,2491.4,0.80218]
[1749240654115,2.71616,2491.6,2491.5,0.80217]
[1749240654314,2.98744932,2491.6,2491.5,0.80217]
[1749240654503,3.78958932,2491.6,2491.5,0.80217]
[1749240654709,2.98744932,2491.6,2491.5,0.80217]
[1749240654908,1.71894932,2491.6,2491.5,0.80217]
[1749240655118,2.52108932,2491.6,2491.5,0.80217]
[1749240656710,3.87988932,2491.6,2491.5,0.80217]
[1749240657615,2.52108932,2491.6,2491.5,0.80217]
[1749240658211,1.71894932,2491.6,2491.5,0.80217]
[1749240658413,1.51897351,2491.6,2491.5,0.80217]
[1749240659516,1.44764,2491.6,2491.5,0.80217]
[1749240661023,2.78364,2491.6,2491.5,0.80217]
[1749240661321,1.9815,2491.6,2491.5,0.80217]
[1749240661519,2.78364,2491.6,2491.5,0.80217]
[1749240662817,1.43874216,2491.7,2491.6,0.80214]
[1749240663018,1.70878252,2491.7,2491.6,0.80214]
[1749240663325,1.43873216,2491.7,2491.6,0.80214]
[1749240665822,0.00602216,2491.7,2491.6,4.00994]
[1749240666514,2.6605,2492.5,2491.6,8.8826]
[1749240666714,2.6605,2492.5,2492.4,0.80189]
[1749240667319,1.3071,2492.5,2492.4,0.80189]
[1749240667627,0.00602216,2492.7,2492.6,0.80182]
[1749240668321,0.00602216,2492.7,2492.5,4.00963]
[1749240668525,0.00602216,2492.7,2492.3,5.67792]
[1749240668723,1.31332216,2492.7,2492.3,4.876]
[1749240668923,1.31332216,2492.7,2492.3,5.6779]
[1749240669130,2.11513216,2492.7,2492.4,0.80188]
[1749240669422,0.80183,2492.6,2492.3,5.67789]
[1749240669621,1.31332216,2492.7,2492.3,4.876]
[1749240669819,0.00602216,2492.7,2492.5,3.2078]
[1749240670019,2.11514216,2492.7,2492.5,3.2078]
[1749240670222,0.80182,2492.6,2492.5,3.2078]
[1749240670822,2.11513216,2492.7,2492.5,3.2078]
[1749240671123,1.31332216,2492.7,2492.5,3.2078]
[1749240671325,0.80182,2492.6,2492.5,3.2078]
[1749240673529,0.80782216,2492.7,2492.6,0.80182]
[1749240674329,0.80782216,2492.7,2492.6,1.44852]
[1749240674330,0.00602216,2492.7,2492.6,1.44852]
[1749240674825,0.80781216,2492.7,2492.6,1.44852]
[1749240676326,0.80182,2492.6,2492.5,3.2078]
[1749240676830,0.80189,2492.4,2492.3,4.875]
[1749240677327,0.80192,2492.3,2492.2,0.00602216]
[1749240677522,0.80201,2492.0,2491.9,3.2078]
[1749240677720,0.07133351,2491.7,2491.3,32.3588]
[1749240677926,0.80216,2491.6,2491.5,0.80217]
[1749240678326,0.07133351,2491.7,2491.3,32.3588]
[1749240678526,0.07133351,2491.7,2491.6,4.00994]
[1749240679122,0.07133351,2491.7,2491.6,9.00994]
[1749240679525,0.07133351,2491.7,2491.6,4.00994]
[1749240679726,0.695,2492.1,2491.9,0.80203]
[1749240679924,0.695,2492.1,2491.9,8.88483]
[1749240680230,0.80201,2492.0,2491.9,8.88483]
[1749240680425,0.695,2492.1,2491.9,8.0828]
[1749240680620,0.695,2492.1,2491.9,8.88482]
[1749240680621,0.80201,2492.0,2491.9,8.88482]
[1749240681124,0.80201,2492.0,2491.9,3.2078]
[1749240681329,2.14441,2492.0,2491.9,3.2078]
[1749240682730,1.49699,2492.1,2492.0,0.80201]
[1749240683436,0.80201,2492.0,2491.9,4.00982]
[1749240683831,0.80201,2492.0,2491.9,3.2078]
[1749240684436,0.80201,2492.0,2491.9,4.00985]
[1749240684736,1.497,2492.1,2492.0,0.80201]
[1749240685231,0.80201,2492.0,2491.9,4.00982]
[1749240687036,0.80201,2492.0,2491.9,3.2078]
[1749240687535,0.80201,2492.0,2491.9,4.00985]
[1749240687934,0.80201,2492.0,2491.9,3.2078]
[1749240688127,2.00516,2491.9,2491.7,0.80209]
[1749240688332,2.09103,2491.8,2491.7,0.80209]
[1749240688535,0.80206,2491.9,2491.8,0.80203]
[1749240688735,1.57534,2492.0,2491.9,0.80205]
[1749240688932,2.64968283,2492.0,2491.9,0.80205]
[1749240690736,1.57534,2492.0,2491.9,0.80205]
[1749240691636,2.6510482,2492.0,2491.9,0.80205]
[1749240695942,2.72238171,2492.0,2491.9,0.80205]
[1749240696241,2.72238171,2492.0,2491.8,0.80207]
[1749240696242,0.80208,2491.9,2491.8,0.80207]
[1749240697341,1.64665351,2492.0,2491.9,0.80205]
[1749240697528,0.84463351,2492.0,2491.9,4.00985]
[1749240697940,1.64664351,2492.0,2491.9,4.00985]
[1749240699545,0.84463351,2492.0,2491.9,4.00985]
[1749240700042,1.64664351,2492.0,2491.9,4.00985]
[1749240700338,0.84463351,2492.0,2491.9,4.00985]
[1749240700642,1.64664351,2492.0,2491.9,4.00985]
[1749240701045,1.64664351,2492.0,2491.9,4.06475902]
[1749240702341,0.84463351,2492.0,2491.9,4.06475902]
[1749240704944,1.64664351,2492.0,2491.9,4.06475902]
[1749240705146,0.84463351,2492.0,2491.9,4.06475902]
[1749240706439,1.92415356,2492.0,2491.9,4.06475902]
[1749240713739,0.3758,2492.1,2491.9,3.26270902]
[1749240713946,2.00426,2493.0,2492.6,0.80182]
[1749240714146,1.88796566,2492.7,2492.6,0.85672902]
[1749240714552,3.26346566,2492.7,2492.6,0.85672902]
[1749240715344,3.91196566,2492.7,2492.6,0.85672902]
[1749240717148,2.53646566,2492.7,2492.6,0.85672902]
[1749240717350,1.73467566,2492.7,2492.6,0.85672902]
[1749240720055,0.00602216,2492.7,2492.6,0.85672902]
[1749240724458,0.07735567,2492.7,2492.6,0.85672902]
[1749240725749,0.6583,2493.0,2492.9,0.80173]
[1749240725953,0.672,2493.2,2493.1,0.80166]
[1749240726155,1.75137228,2493.2,2493.1,0.85656902]
[1749240726650,1.07937228,2493.2,2493.1,0.85656902]
[1749240726957,0.668,2493.5,2493.3,0.8016]
[1749240726958,0.00602216,2493.4,2493.3,0.8016]
[1749240727151,0.00602216,2493.4,2493.3,8.93430902]
[1749240727356,0.00602216,2493.4,2493.3,4.06430902]
[1749240727657,0.00602216,2493.4,2493.3,8.93430902]
[1749240730249,1.31992216,2493.4,2493.3,8.93430902]
[1749240731762,0.00602216,2493.4,2493.3,8.93430902]
[1749240732065,1.3139,2493.8,2493.7,0.80147]
[1749240732362,1.9735,2493.8,2493.7,0.85637902]
[1749240732555,2.77494,2493.8,2493.7,0.85637902]
[1749240733166,2.77494,2493.8,2493.7,0.05490902]
[1749240733865,2.77494,2493.8,2493.7,0.85637902]
[1749240734661,2.77494,2493.8,2493.7,0.05490902]
[1749240734865,8.85282251,2493.8,2493.7,0.05490902]
[1749240735861,3.85282251,2493.8,2493.7,0.05490902]
[1749240736063,2.77494,2493.8,2493.7,0.05490902]
[1749240736560,1.9735,2493.8,2493.7,0.85637902]
[1749240736764,0.6596,2493.8,2493.7,0.85637902]
[1749240737066,0.6699,2493.9,2493.8,0.80144]
[1749240737264,0.6699,2493.9,2493.8,0.85634902]
[1749240737565,0.66052216,2494.0,2493.9,0.8014]
[1749240737765,0.66052216,2494.0,2493.9,4.0092]
[1749240737959,0.6653,2494.4,2494.3,0.80128]
[1749240738166,1.46656,2494.4,2494.3,0.80128]
[1749240738365,1.46656,2494.4,2494.3,0.85618902]
[1749240739261,2.15156,2494.4,2494.3,0.85618902]
[1749240739458,1.3503,2494.4,2494.3,0.85618902]
[1749240739772,2.15154,2494.4,2494.3,0.85618902]
[1749240740069,3.44264,2494.4,2494.3,0.05490902]
[1749240740368,1.3503,2494.4,2494.3,0.85618902]
[1749240741568,2.6761,2494.4,2494.3,0.85618902]
[1749240741768,2.6761,2494.4,2494.3,5.72518902]
[1749240742164,3.47734,2494.4,2494.3,5.72518902]
[1749240742566,3.47734,2494.4,2494.3,0.85618902]
[1749240742969,0.80123,2494.5,2494.4,0.80124]
[1749240743160,1.4397,2494.6,2494.5,0.80121]
[1749240743366,1.4397,2494.6,2494.5,0.85611902]
[1749240743673,0.6385,2494.6,2494.5,0.85611902]
[1749240743870,17.74637006,2495.8,2494.5,8.26270902]
[1749240743871,0.80099,2495.3,2494.5,8.26270902]
[1749240744070,2.6326,2495.4,2494.9,5.21051]
[1749240744275,1.08021453,2495.3,2495.2,4.00875]
[1749240744570,0.80095,2495.3,2495.2,3.26270902]
[1749240744768,1.46925,2495.3,2495.2,4.06369902]
[1749240745069,0.6683,2495.3,2495.2,4.06369902]
[1749240745464,1.46925,2495.3,2495.2,3.26270902]
[1749240745975,0.80082,2495.8,2495.7,0.80081]
[1749240746166,0.80085,2495.7,2495.6,0.80083]
[1749240746364,0.6788,2495.8,2495.7,0.80083]
[1749240746669,0.80074,2496.0,2495.9,0.80076]
[1749240747058,1.3404,2496.1,2495.8,0.80078]
[1749240747261,0.80074,2496.0,2495.9,0.80075]
[1749240747463,0.80074,2496.0,2495.9,0.85565902]
[1749240748474,0.80074,2496.0,2495.9,0.05490902]
[1749240748672,6.87858938,2496.0,2495.9,0.05490902]
[1749240748971,0.80086,2495.6,2495.5,0.80688974]
[1749240749171,0.80086,2495.6,2495.5,0.00600974]
[1749240750267,6.87878834,2495.6,2495.5,0.00600974]
[1749240751275,10.08658834,2495.6,2495.5,0.00600974]
[1749240752369,0.80105,2495.0,2494.9,3.2078]
[1749240752568,0.80104,2495.1,2495.0,0.80102]
[1749240752770,0.80105,2495.0,2494.9,4.00885]
[1749240752973,0.80108,2494.9,2494.8,0.8011]
[1749240753373,0.80115,2494.7,2494.6,4.01496974]
[1749240753569,0.80115,2494.7,2494.6,3.21380974]
[1749240753973,0.80115,2494.7,2494.6,0.00600974]
[1749240754173,1.87999198,2494.7,2494.6,0.00600974]
[1749240754473,9.28664198,2494.7,2494.4,0.80122]
[1749240754779,0.80128,2494.4,2494.3,0.80126]
[1749240755981,2.07423351,2494.7,2494.1,5.67333974]
[1749240755982,0.80131,2494.2,2494.1,5.67333974]
[1749240756184,0.80131,2494.2,2494.1,4.87200974]
[1749240756372,0.80131,2494.2,2494.1,5.67334974]
[1749240756574,0.8013,2494.3,2494.2,0.80128]
[1749240757278,0.80131,2494.2,2494.1,5.67032974]
[1749240757580,0.80131,2494.2,2494.1,0.80732974]
[1749240757777,0.8013,2494.3,2494.2,0.80127]
[1749240757977,0.80126,2494.4,2494.3,0.80123]
[1749240758878,0.80131,2494.2,2494.1,0.80732974]
[1749240759075,0.80131,2494.2,2494.1,5.67134974]
[1749240759278,5.28205351,2494.7,2494.1,4.87000974]
[1749240759482,3.08232708,2494.6,2494.1,4.87000974]
[1749240759682,0.80129,2494.4,2494.3,0.80125]
[1749240759874,0.80131,2494.3,2494.2,0.80128]
[1749240760075,0.80131,2494.2,2494.1,0.00600974]
[1749240760281,2.12211,2494.2,2494.1,0.00600974]
[1749240762280,2.12211,2494.2,2494.1,0.80734974]
[1749240762476,2.12211,2494.2,2494.1,0.00600974]
[1749240762982,0.00596832,2495.1,2494.9,0.80106]
[1749240763179,0.00596832,2495.1,2494.9,4.864]
[1749240763481,0.80699832,2495.1,2495.0,0.80105]
[1749240763872,1.08430594,2495.1,2495.0,0.80105]
[1749240764075,0.00596832,2495.1,2495.0,0.80105]
[1749240764381,0.80698832,2495.1,2495.0,0.80105]
[1749240764576,0.00596832,2495.1,2495.0,0.80105]
[1749240765480,2.39415272,2495.1,2495.0,0.80105]
[1749240765677,3.19517272,2495.1,2495.0,0.80105]
[1749240765882,2.39415272,2495.1,2495.0,0.80105]
[1749240766282,1.08525272,2495.1,2495.0,0.80105]
[1749240766684,0.00596832,2495.1,2495.0,0.80105]
[1749240767272,5.4943,2495.6,2495.5,0.80089]
[1749240767586,2.51161539,2495.6,2495.5,0.80089]
[1749240768283,0.80091,2495.5,2495.4,0.80091]
[1749240768483,0.80092,2495.4,2495.3,3.2078]
[1749240768670,0.80092,2495.5,2495.3,3.2078]
[1749240768876,0.80092,2495.5,2495.4,0.8009]
[1749240769090,1.08075122,2495.5,2495.4,0.8009]
[1749240769684,1.88164122,2495.5,2495.4,0.8009]
[1749240770183,0.80092,2495.4,2495.3,3.2078]
[1749240770379,2.18682,2495.4,2495.3,3.2078]
[1749240770684,3.26761178,2495.4,2495.3,4.00876]
[1749240771083,3.26761178,2495.4,2495.3,3.2078]
[1749240771288,0.80102,2495.2,2495.0,3.2078]
[1749240771477,0.80102,2495.1,2495.0,4.00884]
[1749240772285,0.87235351,2495.1,2495.0,4.00885]
[1749240772485,0.07133351,2495.1,2495.0,4.00885]
[1749240773385,1.9539422,2495.1,2495.0,3.2078]
[1749240773593,3.9918422,2495.1,2495.0,3.2078]
[1749240775392,0.80118,2494.6,2494.5,4.009]
[1749240775690,0.80118,2494.6,2494.5,4.00901]
[1749240775878,1.3054,2494.9,2494.5,5.21083]
[1749240776079,1.08163073,2494.8,2494.7,0.80112]
[1749240776284,1.08163073,2494.8,2494.7,4.00892]
[1749240776599,1.88275073,2494.8,2494.7,4.00892]
[1749240777890,1.88275073,2494.8,2494.7,3.2078]
[1749240778091,0.80125,2494.5,2494.4,0.8012]
[1749240779089,0.8012,2494.6,2494.5,0.80117]
[1749240780293,0.80117,2494.7,2494.6,0.80115]
[1749240780685,1.88360145,2494.7,2494.6,0.80115]
[1749240781594,0.80117,2494.7,2494.6,0.80115]
[1749240782392,0.80113,2494.9,2494.8,0.80109]
[1749240782586,1.88364717,2494.9,2494.8,0.80109]
[1749240783092,0.80115,2494.7,2494.6,4.63777]
[1749240784189,0.80115,2494.7,2494.6,3.2078]
[1749240784400,0.80125,2494.4,2494.3,3.2078]
[1749240785084,1.88329798,2494.4,2494.3,3.2078]
[1749240785284,1.88338493,2494.4,2494.3,3.2078]
[1749240785484,0.80125,2494.4,2494.3,3.2078]
[1749240785683,3.2102308,2494.4,2494.3,3.2078]
[1749240786790,2.12805,2494.4,2494.3,3.2078]
[1749240787093,0.80125,2494.4,2494.3,4.00908]
[1749240787595,0.80121,2494.6,2494.5,0.80118]
[1749240787782,0.80125,2494.4,2494.3,3.2078]
[1749240788191,0.80131,2494.2,2494.1,0.00600974]
[1749240789290,1.88602848,2494.2,2494.1,0.00600974]
[1749240791791,1.88602848,2494.2,2494.1,0.00086293]
[1749240793395,2.00349,2494.0,2493.7,3.2078]
[1749240793595,0.80144,2493.8,2493.7,3.2078]
[1749240793785,0.80153,2493.6,2493.4,8.1468]
[1749240793991,0.80153,2493.6,2493.5,0.8015]
[1749240794193,0.6291,2493.9,2493.8,0.80144]
[1749240794494,0.80142,2493.9,2493.8,3.2078]
[1749240795494,0.80142,2493.9,2493.8,4.00924]
[1749240799994,0.80142,2493.9,2493.8,5.28714]
[1749240800194,0.80142,2493.9,2493.8,4.00924]
[1749240800496,0.80142,2493.9,2493.8,3.2078]
[1749240800707,0.87275351,2493.9,2493.8,3.2078]
[1749240801199,0.87275351,2493.9,2493.8,4.00924]
[1749240801798,0.87275351,2493.9,2493.8,3.2078]
[1749240803198,1.95670398,2493.9,2493.8,3.2078]
[1749240803398,1.95670398,2493.9,2493.6,0.00600974]
[1749240803399,0.80147,2493.7,2493.6,0.00600974]
[1749240803595,5.09322047,2493.7,2493.6,9.74e-06]
[1749240803800,10.09322047,2493.7,2493.6,9.74e-06]
[1749240804106,12.08402047,2493.7,2493.6,9.74e-06]
[1749240804303,7.08402047,2493.7,2493.6,9.74e-06]
[1749240804607,12.08402047,2493.7,2493.6,9.74e-06]
[1749240804797,0.80166,2493.1,2493.0,3.2078]
[1749240806399,0.80173,2492.9,2492.8,0.00600974]
[1749240807300,0.80173,2492.9,2492.8,0.80776974]
[1749240807497,0.00600974,2493.1,2493.0,0.8017]
[1749240807902,0.00600974,2493.1,2493.0,2.0921]
[1749240808606,0.80766974,2493.1,2493.0,2.0921]
[1749240808807,0.8017,2493.0,2492.9,0.6419]
[1749240809008,0.80173,2492.9,2492.8,4.01555974]
[1749240809508,0.80173,2492.9,2492.8,3.21380974]
[1749240810102,0.80173,2492.9,2492.8,0.00600974]
[1749240810404,0.80173,2492.9,2492.8,0.80776974]
[1749240810708,0.80173,2492.9,2492.8,0.00600974]
[1749240811809,0.80173,2492.9,2492.8,0.80776974]
[1749240813311,0.80173,2492.9,2492.8,0.00600974]
[1749240813810,0.80173,2492.9,2492.8,0.80776974]
[1749240814901,0.00600974,2493.1,2493.0,0.8017]
[1749240815108,0.00600974,2493.1,2493.0,0.50090489]
[1749240816011,0.80766974,2493.1,2493.0,0.50090489]
[1749240817107,0.8017,2493.0,2492.9,1.46641]
[1749240817502,0.00600974,2493.1,2492.8,8.12580974]
[1749240817708,0.80173,2492.9,2492.8,0.00600974]
[1749240817908,0.87306351,2492.9,2492.8,0.00600974]
[1749240818606,0.87306351,2492.9,2492.8,0.80776974]
[1749240821606,0.87306351,2492.9,2492.8,0.00600974]
[1749240822012,1.95456458,2492.9,2492.8,0.00600974]
[1749240822212,3.94986458,2492.9,2492.8,0.00600974]
[1749240822604,3.94986458,2492.9,2492.8,0.80776974]
[1749240823518,3.94986458,2492.9,2492.8,0.41670343]
[1749240823713,0.80182,2492.7,2492.6,0.80179]
[1749240826518,0.6373,2492.8,2492.5,4.912]
[1749240826519,1.43908,2492.8,2492.7,0.80179]
[1749240826817,2.52023164,2492.8,2492.7,0.80179]
[1749240828315,1.56798351,2492.9,2492.8,0.80176]
[1749240828620,2.64919615,2492.9,2492.8,0.80176]
[1749240828823,2.64917615,2492.9,2492.8,0.80176]
[1749240830024,2.57784264,2492.9,2492.8,0.80176]
[1749240831217,0.80182,2492.8,2492.7,0.80177]
[1749240831524,1.08121264,2492.8,2492.7,0.80179]
[1749240831920,1.08121264,2492.8,2492.7,5.32539]
[1749240832217,0.00600974,2493.1,2493.0,0.8017]
[1749240832417,1.08963044,2493.1,2493.0,0.8017]
[1749240832721,1.89130044,2493.1,2493.0,0.8017]
[1749240832918,1.08963044,2493.1,2493.0,0.8017]
[1749240838224,1.89130044,2493.1,2493.0,0.8017]
[1749240840320,1.08963044,2493.1,2492.8,2.00441]
[1749240840519,1.0836207,2493.0,2492.9,0.80173]
[1749240840827,0.80767974,2493.1,2493.0,0.8017]
[1749240841019,1.9285313,2493.1,2493.0,0.8017]
[1749240841724,1.9285313,2493.1,2492.7,5.21223]
[1749240841725,0.80173,2493.0,2492.9,0.8017]
[1749240841925,2.59348156,2493.0,2492.9,0.8017]
[1749240843623,1.79175156,2493.0,2492.9,0.8017]
[1749240843830,1.12085156,2493.0,2492.9,0.8017]
[1749240845329,1.19218507,2493.0,2492.9,0.8017]
[1749240845624,1.19218507,2493.0,2492.9,2.1661]
[1749240845819,1.19201519,2493.0,2492.9,2.1661]
[1749240846620,1.99371519,2493.0,2492.9,2.1661]
[1749240846821,0.80178,2492.9,2492.4,6.92271974]
[1749240847021,0.80178,2492.9,2492.8,0.80173]
[1749240847218,1.92254413,2492.9,2492.8,0.80173]
[1749240847430,0.87305351,2493.0,2492.9,0.80173]
[1749240847826,0.80176,2492.9,2492.8,0.80175]
[1749240848137,2.61169079,2492.9,2492.8,0.80175]
[1749240849130,1.80993079,2492.9,2492.8,0.80175]
[1749240849324,1.12073079,2492.9,2492.8,0.80175]
[1749240850931,1.92246079,2492.9,2492.8,0.80175]
[1749240851233,1.12073079,2492.9,2492.8,0.80175]
[1749240851437,1.12073079,2492.9,2492.8,5.68675]
[1749240851646,0.07133351,2493.0,2492.9,0.80173]
[1749240851929,8.38121004,2493.9,2493.2,2.00409]
[1749240852129,0.80151,2493.7,2493.6,0.80148]
[1749240852729,0.80154,2493.6,2493.5,0.80151]
[1749240852935,0.80157,2493.4,2493.3,1.49457]
[1749240853137,0.80157,2493.4,2493.3,0.80157]
[1749240854339,0.80156,2493.5,2493.4,0.80153]
[1749240855138,0.80152,2493.6,2493.5,0.8015]
[1749240857241,0.8016,2493.4,2493.3,0.80156]
[1749240858735,0.8016,2493.4,2493.3,5.68556]
[1749240859344,0.80155,2493.6,2493.5,0.80151]
[1749240859531,0.80157,2493.5,2493.4,0.80155]
[1749240859933,0.87285351,2493.6,2493.5,0.80154]
[1749240860133,2.14135351,2493.6,2493.5,0.80154]
[1749240861137,0.80157,2493.5,2493.4,0.80155]
[1749240861335,2.07007,2493.5,2493.4,0.80155]
[1749240862746,0.80157,2493.4,2493.3,5.68558]
[1749240862944,2.82017,2493.4,2493.3,5.68558]
[1749240863844,3.93469401,2493.4,2493.3,5.68558]
[1749240864239,3.93469401,2493.4,2493.3,0.80158]
[1749240866339,3.13312401,2493.4,2492.9,2.0043]
[1749240866539,3.13312401,2493.4,2493.0,2.0042]
[1749240866540,1.81092401,2493.3,2493.0,2.0042]
[1749240866747,1.49801,2493.3,2493.2,0.80163]
[1749240866938,2.61253434,2493.3,2493.2,0.80163]
[1749240868943,1.11452434,2493.3,2493.2,0.80163]
[1749240869149,0.80154,2493.5,2493.4,0.80157]
[1749240869348,0.87285351,2493.6,2493.5,0.80153]
[1749240869846,1.98723788,2493.6,2493.5,0.80153]
[1749240870055,1.18571788,2493.6,2493.5,0.80153]
[1749240870639,1.98721788,2493.6,2493.5,0.80153]
[1749240874853,0.87283351,2493.6,2493.5,0.80153]
[1749240875159,1.98684881,2493.6,2493.5,0.80153]
[1749240876156,0.00600974,2493.8,2493.7,0.80147]
[1749240876355,0.00600974,2493.8,2493.7,5.68547]
[1749240879057,0.00600974,2493.8,2493.7,0.80147]
[1749240880452,0.00600974,2493.8,2493.7,5.80147]
[1749240880650,0.00600974,2493.8,2493.7,7.85287]
[1749240881359,0.00600974,2493.8,2493.7,2.85287]
[1749240883360,0.00600974,2493.8,2493.7,1.46167]
[1749240885559,0.00600974,2493.8,2493.7,2.76197]
[1749240889666,0.00600974,2493.8,2493.7,0.80147]
[1749240889965,0.07734325,2493.8,2493.7,0.80147]
[1749240890959,0.07734325,2493.8,2493.7,2.09147]
[1749240891160,0.07734325,2493.8,2493.7,2.73807]
[1749240891361,2.0565,2494.2,2493.7,2.73807]
[1749240891362,0.6903,2494.2,2494.1,0.80134]
[1749240891562,0.6779,2494.4,2494.3,0.80128]
[1749240891868,1.7848989,2494.4,2494.3,0.80128]
[1749240892670,3.0686989,2494.4,2494.3,0.80128]
[1749240892970,3.8699389,2494.4,2494.3,0.80128]
[1749240893370,3.0686989,2494.4,2494.3,0.80128]
[1749240894366,3.8699389,2494.4,2494.3,0.80128]
[1749240897173,3.0686989,2494.4,2494.3,0.80128]
[1749240897375,3.8699389,2494.4,2494.3,0.80128]
[1749240898571,0.80131,2494.3,2494.2,0.80129]
[1749240898765,0.80131,2494.2,2494.1,8.08780974]
[1749240898972,2.5637089,2494.2,2494.1,4.88000974]
[1749240899171,3.9463089,2494.2,2494.1,4.88000974]
[1749240900277,3.9463089,2494.2,2494.1,0.00600974]
[1749240900669,8.9463089,2494.2,2494.1,0.00600974]
[1749240900876,0.80141,2493.9,2493.8,3.2078]
[1749240901076,1.91288983,2493.9,2493.8,3.2078]
[1749240901276,1.91288983,2493.9,2493.8,4.00924]
[1749240901478,1.11147983,2493.9,2493.8,4.00924]
[1749240901966,1.3494,2494.0,2493.9,0.80141]
[1749240902172,0.6554,2494.2,2494.1,0.80134]
[1749240902372,2.56822563,2494.2,2494.1,0.80134]
[1749240902575,3.93722563,2494.2,2494.1,0.80134]
[1749240902770,0.80137,2494.1,2494.0,0.80135]
[1749240903075,0.80141,2494.0,2493.9,0.80138]
[1749240903281,0.80141,2493.9,2493.8,4.00923]
[1749240903482,3.28192563,2493.9,2493.8,4.00923]
[1749240904470,3.28192563,2493.9,2493.8,3.2078]
[1749240904670,0.80147,2493.7,2493.6,0.00600974]
[1749240905177,1.91298563,2493.7,2493.6,0.00600974]
[1749240905382,3.28198563,2493.7,2493.6,0.80750974]
[1749240905978,2.48113398,2493.7,2493.6,0.80750974]
[1749240906776,1.11213398,2493.7,2493.6,0.80750974]
[1749240906976,0.6303,2493.8,2493.7,0.80147]
[1749240907280,1.7421197,2493.8,2493.7,0.80147]
[1749240907478,2.9988197,2493.8,2493.7,0.80147]
[1749240909786,1.7421197,2493.8,2493.7,0.80147]
[1749240910290,1.1118197,2493.8,2493.7,0.80147]
[1749240910484,1.1118197,2493.8,2493.7,1.48387]
[1749240910785,0.6813,2494.0,2493.9,0.8014]
[1749240910985,0.6813,2494.0,2493.9,5.6724]
[1749240919397,0.6726,2494.1,2494.0,0.80137]
[1749240919897,1.47394,2494.1,2494.0,0.80137]
[1749240922389,0.80141,2494.0,2493.9,0.80138]
[1749240922594,1.97888757,2494.0,2493.9,0.80138]
[1749240922794,3.33348757,2494.0,2493.9,0.80138]
[1749240924200,0.80141,2493.9,2493.8,5.67242]
[1749240924396,1.10614406,2493.9,2493.6,0.00600974]
[1749240924596,2.77686,2493.8,2493.7,0.80144]
[1749240924804,3.88300406,2493.8,2493.7,0.80144]
[1749240925100,1.10614406,2493.8,2493.7,0.80144]
[1749240925503,1.90758406,2493.8,2493.7,0.80144]
[1749240925889,1.10614406,2493.8,2493.7,0.80144]
[1749240926093,0.80144,2493.8,2493.7,0.80144]
[1749240926290,1.90758406,2493.8,2493.7,0.80144]
[1749240926503,1.90760406,2493.8,2493.7,0.80147]
[1749240927000,0.80147,2493.7,2493.6,0.80748974]
[1749240927196,2.54851406,2493.7,2493.6,0.80748974]
[1749240927795,2.54851406,2493.7,2493.6,0.00600974]
[1749240929001,2.54851406,2493.7,2493.6,0.80750974]
[1749240930106,2.54851406,2493.7,2493.6,0.00600974]
[1749240932104,1.44237,2493.7,2493.6,0.00600974]
[1749240932310,2.54839912,2493.7,2493.6,0.00600974]
[1749240934808,2.54839912,2493.7,2493.6,0.80750974]
[1749240935311,1.74692912,2493.7,2493.6,0.80750974]
[1749240935711,2.61973263,2493.7,2493.6,0.80750974]
[1749240935904,0.6814,2494.1,2494.0,0.80137]
[1749240936110,1.48277,2494.1,2494.0,0.4104488]
[1749240936710,1.48277,2494.1,2493.9,3.2078]
[1749240936711,0.80137,2494.0,2493.9,3.2078]
[1749240937008,1.48277,2494.1,2494.0,0.80137]
[1749240937208,0.80137,2494.1,2494.0,0.80137]
[1749240937510,0.80137,2494.1,2494.0,1.44407]
[1749240937913,0.80137,2494.1,2494.0,0.80137]
[1749240938412,0.80137,2494.0,2493.9,3.2078]
[1749240939411,0.80137,2494.0,2493.9,0.80141]
[1749240941308,0.80136,2494.1,2494.0,0.80133]
[1749240943310,0.80141,2494.0,2493.9,0.80138]
[1749240944608,0.80138,2494.1,2494.0,0.80135]
[1749240946012,0.80133,2494.2,2494.1,0.80131]
[1749240947608,0.80137,2494.1,2494.0,0.80135]
[1749240947913,1.90023701,2494.1,2494.0,0.80135]
[1749240948408,0.80137,2494.1,2494.0,0.80135]
[1749240948610,0.80137,2494.1,2493.9,3.2078]
[1749240948611,0.6709,2494.3,2494.1,0.80134]